bitfinex/quotes_BTCUSD_20241117
["timestamp","ask_amount","ask_price","bid_price","bid_amount"]
[1731810060107,0.08258202,89854.0,89853.0,0.002]
[1731810060365,0.08258202,89854.0,89846.0,0.111301]
[1731810060366,0.19387402,89854.0,89846.0,0.111301]
[1731810060593,0.08258202,89854.0,89853.0,0.002]
[1731810060842,0.19387302,89854.0,89853.0,0.002]
[1731810061070,0.111295,89851.0,89845.0,0.16712068]
[1731810061303,0.19387302,89854.0,89853.0,0.002]
[1731810061805,0.19387302,89854.0,89853.0,0.004]
[1731810061989,0.08258202,89854.0,89853.0,0.004]
[1731810062284,0.08258202,89854.0,89853.0,0.002]
[1731810062524,0.19387302,89854.0,89853.0,0.002]
[1731810062757,0.19387302,89854.0,89853.0,0.004]
[1731810063025,0.19387302,89854.0,89853.0,0.002]
[1731810063305,0.222594,89850.0,89834.0,0.38975168]
[1731810063546,0.08258202,89854.0,89853.0,0.004]
[1731810063547,0.19387302,89854.0,89853.0,0.004]
[1731810063726,0.37107302,89854.0,89853.0,0.004]
[1731810063965,0.37107302,89854.0,89834.0,0.16712068]
[1731810064182,0.37107302,89854.0,89845.0,0.16712068]
[1731810064183,0.1113,89847.0,89845.0,0.16712068]
[1731810064410,0.1113,89847.0,89834.0,0.16712068]
[1731810064411,0.45436502,89854.0,89846.0,0.16712068]
[1731810064655,0.45436502,89854.0,89837.0,0.00393344]
[1731810064656,0.13178202,89854.0,89837.0,0.00393344]
[1731810064894,0.13178202,89854.0,89848.0,0.111298]
[1731810065120,0.111293,89853.0,89846.0,0.111301]
[1731810065351,0.13178202,89854.0,89838.0,0.10906255]
[1731810065587,0.08258202,89854.0,89853.0,0.004]
[1731810065807,0.08258202,89854.0,89853.0,0.002]
[1731810066023,0.08258202,89854.0,89851.0,0.222588]
[1731810066251,0.08258202,89854.0,89853.0,0.111292]
[1731810066708,0.00078202,89854.0,89853.0,0.111292]
[1731810067190,0.00078202,89854.0,89853.0,0.113292]
[1731810067460,0.00078202,89854.0,89853.0,0.002]
[1731810068373,0.00078202,89854.0,89851.0,0.113295]
[1731810068599,0.00078202,89854.0,89844.0,0.38972568]
[1731810068600,0.00078202,89854.0,89853.0,0.002]
[1731810068819,0.00078202,89854.0,89853.0,0.004]
[1731810069048,0.00078202,89854.0,89846.0,0.222601]
[1731810069049,0.00078202,89854.0,89851.0,0.111295]
[1731810069495,0.00078202,89854.0,89853.0,0.004]
[1731810070042,0.00078202,89854.0,89853.0,0.002]
[1731810070255,0.00078202,89854.0,89853.0,0.111292]
[1731810070710,0.00078202,89854.0,89851.0,0.002]
[1731810071147,0.111293,89853.0,89851.0,0.002]
[1731810071404,0.111294,89852.0,89851.0,0.004]
[1731810071636,0.199194,89852.0,89851.0,0.004]
[1731810071854,0.47825655,89852.0,89851.0,0.004]
[1731810072088,0.111311,89838.0,89837.0,0.0017074]
[1731810073411,0.111311,89838.0,89837.0,0.0037074]
[1731810073639,0.194211,89838.0,89837.0,0.0017074]
[1731810073881,0.48327355,89838.0,89837.0,0.0037074]
[1731810075005,0.48327355,89838.0,89837.0,0.0057074]
[1731810075275,0.48327355,89838.0,89837.0,0.0037074]
[1731810075509,0.47827355,89838.0,89837.0,0.0037074]
[1731810075732,0.341211,89838.0,89837.0,0.0037074]
[1731810075959,0.346211,89838.0,89837.0,0.0057074]
[1731810076191,0.369211,89838.0,89837.0,0.0057074]
[1731810076444,0.346211,89838.0,89837.0,0.0037074]
[1731810076626,0.341211,89838.0,89837.0,0.0037074]
[1731810076872,0.341211,89838.0,89837.0,0.0017074]
[1731810076873,0.48327355,89838.0,89837.0,0.0017074]
[1731810077092,0.364211,89838.0,89837.0,0.0037074]
[1731810077309,0.341211,89838.0,89837.0,0.0037074]
[1731810077531,0.341211,89838.0,89837.0,0.0057074]
[1731810077978,0.341211,89838.0,89837.0,0.0037074]
[1731810078202,0.341211,89838.0,89837.0,0.0057074]
[1731810078648,0.341211,89838.0,89837.0,0.0037074]
[1731810078879,0.346211,89838.0,89837.0,0.0037074]
[1731810079072,0.341211,89838.0,89837.0,0.0057074]
[1731810079336,0.341211,89838.0,89837.0,0.0017074]
[1731810079558,0.346211,89838.0,89837.0,0.0017074]
[1731810079785,0.51189566,89838.0,89837.0,0.0057074]
[1731810080032,0.62595821,89838.0,89837.0,0.0037074]
[1731810080267,0.51664721,89838.0,89837.0,0.0047074]
[1731810080520,0.62595821,89838.0,89837.0,0.0037074]
[1731810080956,0.29178202,89854.0,89837.0,0.0017074]
[1731810081173,0.002,89838.0,89837.0,0.0027074]
[1731810081392,0.002,89838.0,89837.0,0.22530806]
[1731810081628,0.002,89838.0,89837.0,0.22308195]
[1731810081865,0.00078202,89854.0,89837.0,0.22308195]
[1731810081866,0.00078202,89854.0,89837.0,0.11176995]
[1731810082116,0.00078202,89854.0,89853.0,0.111292]
[1731810084391,0.00078202,89854.0,89853.0,0.12895299]
[1731810084837,0.00078202,89854.0,89853.0,0.01766099]
[1731810085062,0.00078202,89854.0,89853.0,0.004]
[1731810085767,0.00078202,89854.0,89848.0,0.222597]
[1731810085984,0.00078202,89854.0,89853.0,0.004]
[1731810086469,0.00078202,89854.0,89853.0,0.32235455]
[1731810086697,0.00078202,89854.0,89853.0,0.32435455]
[1731810086918,0.00078202,89854.0,89853.0,0.33106495]
[1731810087381,0.00078202,89854.0,89853.0,0.32906495]
[1731810087648,0.00078202,89854.0,89853.0,0.33106495]
[1731810088074,0.00078202,89854.0,89853.0,0.32906495]
[1731810088295,0.00078202,89854.0,89853.0,0.33106495]
[1731810088516,0.00078202,89854.0,89853.0,0.32906495]
[1731810088744,0.00078202,89854.0,89853.0,0.33106495]
[1731810088970,0.00078202,89854.0,89853.0,0.32906495]
[1731810089269,0.00078202,89854.0,89853.0,0.33106495]
[1731810089520,0.00078202,89854.0,89853.0,0.32606495]
[1731810089736,0.00078202,89854.0,89853.0,0.33106495]
[1731810090747,0.00078202,89854.0,89853.0,0.0057104]
[1731810090984,0.00078202,89854.0,89853.0,0.22606495]
[1731810091434,0.00078202,89854.0,89853.0,0.23106495]
[1731810091910,0.00078202,89854.0,89853.0,0.22606495]
[1731810092129,0.00078202,89854.0,89853.0,0.0057104]
[1731810092598,0.00078202,89854.0,89853.0,0.0037104]
[1731810092842,0.00078202,89854.0,89853.0,0.0057104]
[1731810093078,0.11207302,89854.0,89853.0,0.0037104]
[1731810093509,0.11207302,89854.0,89853.0,0.0057104]
[1731810093733,0.11207302,89854.0,89853.0,0.0037104]
[1731810093958,0.11207302,89854.0,89853.0,0.0017104]
[1731810094180,0.11207302,89854.0,89853.0,0.0037104]
[1731810094635,0.11207302,89854.0,89853.0,0.0017104]
[1731810095076,0.11207302,89854.0,89853.0,0.0057104]
[1731810095292,0.0008548,89855.0,89853.0,0.0057104]
[1731810095516,0.111291,89854.0,89853.0,0.0057104]
[1731810096400,0.111291,89854.0,89853.0,0.0037104]
[1731810096401,0.263591,89854.0,89853.0,0.0037104]
[1731810096618,0.263591,89854.0,89853.0,0.0057104]
[1731810097074,0.37765355,89854.0,89853.0,0.0057104]
[1731810097297,0.37765355,89854.0,89853.0,0.0017104]
[1731810097518,0.37765355,89854.0,89853.0,0.0027104]
[1731810097972,0.37765355,89854.0,89853.0,0.0017104]
[1731810098215,0.37765355,89854.0,89853.0,0.0027104]
[1731810098672,0.37765355,89854.0,89837.0,0.0017074]
[1731810098673,0.116311,89838.0,89837.0,0.0017074]
[1731810098902,0.186411,89838.0,89837.0,0.0017074]
[1731810099549,0.181411,89838.0,89837.0,0.0017074]
[1731810099990,0.181411,89838.0,89837.0,0.0037074]
[1731810100435,0.263611,89838.0,89837.0,0.0037074]
[1731810100683,0.47767355,89838.0,89837.0,0.0057074]
[1731810101139,0.47767355,89838.0,89837.0,0.0037074]
[1731810101356,0.47767355,89838.0,89820.0,0.0009862]
[1731810101357,0.111328,89824.0,89820.0,0.0009862]
[1731810101583,0.32559055,89824.0,89820.0,0.0009862]
[1731810101840,0.32559055,89824.0,89812.0,0.16712068]
[1731810101841,0.32559055,89824.0,89823.0,0.001711]
[1731810102305,0.37269055,89824.0,89823.0,0.001711]
[1731810102832,0.37269055,89824.0,89823.0,0.005711]
[1731810103055,0.40729339,89824.0,89823.0,0.003711]
[1731810103789,0.40729339,89824.0,89823.0,0.005711]
[1731810104519,0.40729339,89824.0,89806.0,0.0009825]
[1731810104520,0.123,89823.0,89806.0,0.0009825]
[1731810104743,0.263549,89807.0,89806.0,0.0009825]
[1731810104976,0.263549,89807.0,89778.0,0.16712068]
[1731810104977,0.0798,89802.0,89779.0,0.005]
[1731810105203,0.023,89801.0,89789.0,0.0009929]
[1731810105431,0.0798,89802.0,89785.0,0.005]
[1731810105903,0.111359,89800.0,89791.0,0.111368]
[1731810106165,0.111362,89797.0,89789.0,0.111371]
[1731810106384,0.004,89801.0,89789.0,0.001]
[1731810106606,0.111355,89803.0,89798.0,0.005]
[1731810106832,0.003,89802.0,89798.0,0.005]
[1731810107322,0.111355,89803.0,89798.0,0.005]
[1731810108220,0.111357,89801.0,89798.0,0.005]
[1731810108954,0.111357,89801.0,89798.0,0.006]
[1731810109172,0.0798,89812.0,89798.0,0.007]
[1731810109397,0.0798,89812.0,89798.0,0.006]
[1731810109398,0.111357,89801.0,89798.0,0.006]
[1731810109858,0.111357,89801.0,89798.0,0.007]
[1731810110083,0.222707,89804.0,89798.0,0.007]
[1731810110309,0.222712,89802.0,89798.0,0.007]
[1731810110555,0.111359,89799.0,89798.0,0.0037108]
[1731810111285,0.111359,89799.0,89798.0,0.0027108]
[1731810111540,0.111359,89799.0,89798.0,0.0047108]
[1731810111996,0.111359,89799.0,89798.0,0.0027108]
[1731810111997,0.14676273,89799.0,89798.0,0.0027108]
[1731810112244,0.27882528,89799.0,89798.0,0.0037108]
[1731810112480,0.27882528,89799.0,89798.0,0.0027108]
[1731810112692,0.43650905,89799.0,89798.0,0.0037108]
[1731810112919,0.43650905,89799.0,89798.0,0.0027108]
[1731810113134,0.43250905,89799.0,89798.0,0.0017108]
[1731810113375,0.43550905,89799.0,89798.0,0.0027108]
[1731810113817,0.50502528,89799.0,89798.0,0.0017108]
[1731810114048,0.50502528,89799.0,89798.0,0.0027108]
[1731810114049,0.51302528,89799.0,89798.0,0.0027108]
[1731810114281,0.134384,89779.0,89778.0,0.16712068]
[1731810114533,0.28904655,89779.0,89778.0,0.16712068]
[1731810114987,0.28904655,89779.0,89776.0,0.0017088]
[1731810114988,0.023,89778.0,89776.0,0.0017088]
[1731810115211,0.15466255,89779.0,89776.0,0.0017088]
[1731810115212,0.38613421,89777.0,89776.0,0.0017088]
[1731810115431,0.41361798,89777.0,89776.0,0.0017088]
[1731810115689,0.38613421,89777.0,89776.0,0.0017088]
[1731810116349,0.38913421,89777.0,89776.0,0.0027088]
[1731810117305,0.36313421,89777.0,89776.0,0.0017088]
[1731810117517,0.36313421,89777.0,89763.0,0.0017102]
[1731810117518,0.111403,89764.0,89763.0,0.0017102]
[1731810119296,0.22046555,89764.0,89763.0,0.0047102]
[1731810119525,0.30106555,89764.0,89763.0,0.0077102]
[1731810120197,0.72641276,89764.0,89763.0,0.0077102]
[1731810120440,0.72641276,89764.0,89754.0,0.0017092]
[1731810120441,0.739414,89755.0,89754.0,0.0017092]
[1731810120678,0.46270766,89748.0,89745.0,0.16712068]
[1731810120892,0.61737021,89748.0,89745.0,0.16712068]
[1731810121207,0.64485398,89748.0,89733.0,0.0017108]
[1731810121304,0.5,89734.0,89733.0,0.0017108]
[1731810121524,0.5,89734.0,89700.0,0.005]
[1731810121525,0.116452,89724.0,89700.0,0.005]
[1731810121766,0.116452,89724.0,89692.0,0.16712068]
[1731810121767,0.111461,89717.0,89692.0,0.16712068]
[1731810122002,0.48718088,89717.0,89692.0,0.16712068]
[1731810122486,0.52212166,89717.0,89692.0,0.16712068]
[1731810122978,1.27859974,89717.0,89706.0,0.16712068]
[1731810123222,0.618471,89709.0,89706.0,0.16712068]
[1731810123476,0.89513355,89709.0,89706.0,0.16712068]
[1731810123712,0.89513355,89709.0,89692.0,0.16712068]
[1731810123713,0.92851825,89709.0,89692.0,0.16712068]
[1731810123943,0.216488,89695.0,89692.0,0.16712068]
[1731810124180,0.56752468,89695.0,89692.0,0.16712068]
[1731810124639,0.56752468,89695.0,89674.0,0.16712068]
[1731810124896,0.67312468,89695.0,89674.0,0.16712068]
[1731810125130,0.67312468,89695.0,89675.0,0.16712068]
[1731810125131,0.634498,89687.0,89675.0,0.16712068]
[1731810125374,0.111498,89687.0,89675.0,0.16712068]
[1731810126558,0.838,89694.0,89675.0,0.16712068]
[1731810126559,0.111495,89690.0,89675.0,0.16712068]
[1731810126791,0.838,89694.0,89675.0,0.16712068]
[1731810126792,0.547,89694.0,89686.0,0.0037094]
[1731810127023,0.71412068,89694.0,89686.0,0.0037094]
[1731810127260,0.547,89694.0,89686.0,0.0037094]
[1731810127491,0.547,89694.0,89693.0,0.111491]
[1731810127710,0.547,89694.0,89686.0,0.0067094]
[1731810127936,0.547,89694.0,89686.0,0.17183008]
[1731810128177,0.305551,89706.0,89693.0,0.111491]
[1731810128178,0.0826,89706.0,89693.0,0.111491]
[1731810128404,0.16712068,89711.0,89701.0,0.005]
[1731810128643,0.16712068,89711.0,89687.0,0.11129241]
[1731810128644,0.16712068,89711.0,89710.0,0.11147]
[1731810128926,0.16712068,89711.0,89710.0,0.11647]
[1731810129151,0.111457,89721.0,89710.0,0.005]
[1731810129378,0.111457,89721.0,89713.0,0.111466]
[1731810129614,0.222898,89727.0,89712.0,0.222935]
[1731810129849,0.16712068,89724.0,89712.0,0.222935]
[1731810130090,0.16712068,89724.0,89710.0,0.007]
[1731810130091,0.16712068,89724.0,89711.0,0.222938]
[1731810130332,0.03477621,89732.0,89710.0,0.007]
[1731810130333,0.111463,89716.0,89710.0,0.007]
[1731810130573,0.16712068,89722.0,89710.0,0.002]
[1731810130812,0.111465,89714.0,89710.0,0.002]
[1731810131043,0.44583,89720.0,89710.0,0.002]
[1731810131044,0.111464,89715.0,89712.0,0.003]
[1731810131281,0.222918,89719.0,89708.0,0.111472]
[1731810131282,0.16712068,89713.0,89708.0,0.111472]
[1731810131550,0.16712068,89713.0,89683.0,0.0017102]
[1731810131551,0.111498,89687.0,89683.0,0.0017102]
[1731810132818,0.222985,89692.0,89686.0,0.0037094]
[1731810133069,0.03564448,89702.0,89695.0,0.005]
[1731810133304,0.03564448,89702.0,89686.0,0.11277195]
[1731810133305,0.03564448,89702.0,89701.0,0.116481]
[1731810133539,0.16712068,89703.0,89702.0,0.11148]
[1731810133782,0.16712068,89703.0,89696.0,0.222975]
[1731810133783,0.222899,89727.0,89705.0,0.222953]
[1731810134052,0.222899,89727.0,89696.0,0.222975]
[1731810134053,0.16712068,89712.0,89711.0,0.111469]
[1731810134291,0.111456,89721.0,89710.0,0.005]
[1731810134536,0.16712068,89722.0,89713.0,0.0008565]
[1731810135013,0.111461,89718.0,89713.0,0.0008565]
[1731810135253,0.001713,89723.0,89715.0,0.005]
[1731810135254,0.111457,89720.0,89715.0,0.005]
[1731810135491,0.001713,89723.0,89715.0,0.005]
[1731810135733,0.001713,89723.0,89722.0,0.111455]
[1731810135973,0.001713,89723.0,89722.0,0.116455]
[1731810137523,0.001713,89723.0,89722.0,0.22851755]
[1731810137750,0.001713,89723.0,89722.0,0.22774634]
[1731810137989,0.001713,89723.0,89722.0,0.23074634]
[1731810138226,0.001713,89723.0,89722.0,0.22774634]
[1731810138484,0.001713,89723.0,89722.0,0.25851755]
[1731810138973,0.001713,89723.0,89722.0,0.25651755]
[1731810139226,0.001713,89723.0,89722.0,0.25851755]
[1731810139915,0.001713,89723.0,89722.0,0.23051755]
[1731810140152,0.001713,89723.0,89722.0,0.22551755]
[1731810140420,0.111461,89717.0,89716.0,0.005]
[1731810140649,0.0816,89731.0,89722.0,0.003]
[1731810140873,0.09183368,89738.0,89722.0,0.003]
[1731810140874,0.16712068,89736.0,89727.0,0.005]
[1731810141098,0.16712068,89736.0,89735.0,0.005]
[1731810141340,0.16712068,89747.0,89746.0,0.111425]
[1731810141568,0.02027256,89746.0,89744.0,0.005]
[1731810141794,0.16712068,89747.0,89744.0,0.005]
[1731810142016,0.222843,89749.0,89744.0,0.005]
[1731810142240,0.02027256,89752.0,89744.0,0.005]
[1731810142241,0.111423,89748.0,89744.0,0.005]
[1731810142467,0.16712068,89757.0,89744.0,0.116426]
[1731810142690,0.02027098,89756.0,89745.0,0.111426]
[1731810142911,0.11142,89750.0,89744.0,0.005]
[1731810143140,0.222828,89755.0,89744.0,0.005]
[1731810143365,0.111426,89745.0,89744.0,0.005]
[1731810143610,0.111426,89745.0,89739.0,0.005]
[1731810143835,0.111426,89745.0,89735.0,0.003]
[1731810143836,0.111426,89745.0,89744.0,0.002]
[1731810144324,0.111426,89745.0,89726.0,0.16712068]
[1731810144325,0.111449,89727.0,89726.0,0.16712068]
[1731810144545,0.03246466,89746.0,89727.0,0.005]
[1731810144546,0.111447,89728.0,89727.0,0.005]
[1731810144770,0.11145,89726.0,89714.0,0.27858568]
[1731810144994,0.16712068,89738.0,89714.0,0.16712068]
[1731810144995,0.02030375,89725.0,89714.0,0.16712068]
[1731810145223,0.02030375,89724.0,89713.0,0.0058565]
[1731810145461,0.222903,89725.0,89717.0,0.005]
[1731810145462,0.22291,89722.0,89717.0,0.005]
[1731810145713,0.222903,89725.0,89717.0,0.005]
[1731810145714,0.13175975,89721.0,89717.0,0.005]
[1731810145971,0.111456,89721.0,89720.0,0.005]
[1731810146198,0.111465,89714.0,89713.0,0.0008565]
[1731810146439,0.13177464,89714.0,89713.0,0.0008565]
[1731810147391,0.13177464,89714.0,89713.0,0.0038565]
[1731810148134,0.13177464,89714.0,89713.0,0.0058565]
[1731810148357,0.05280364,89714.0,89713.0,0.1223225]
[1731810148841,0.02030964,89714.0,89713.0,0.1223225]
[1731810149332,0.02030964,89714.0,89713.0,0.23138505]
[1731810149560,0.03254166,89718.0,89717.0,0.116461]
[1731810149786,0.03254166,89718.0,89717.0,0.22552355]
[1731810150937,0.03254166,89718.0,89717.0,0.23052355]
[1731810151405,0.05290712,89718.0,89717.0,0.23052355]
[1731810151885,0.03254166,89718.0,89717.0,0.23052355]
[1731810152115,0.05290286,89718.0,89717.0,0.23052355]
[1731810152342,0.03254166,89718.0,89717.0,0.23052355]
[1731810152821,0.16712068,89771.0,89768.0,0.005]
[1731810153059,0.16712068,89771.0,89769.0,0.116397]
[1731810153060,0.02037102,89770.0,89769.0,0.116397]
[1731810153318,0.02037102,89770.0,89768.0,0.005]
[1731810153543,0.0785,89779.0,89748.0,0.005]
[1731810153544,0.02037102,89769.0,89763.0,0.005]
[1731810153775,0.02037102,89769.0,89743.0,0.1484]
[1731810153776,0.222796,89768.0,89758.0,0.005]
[1731810154010,0.222796,89768.0,89744.0,0.005]
[1731810154011,0.111419,89751.0,89749.0,0.005]
[1731810154244,0.0835,89779.0,89754.0,0.16712068]
[1731810154245,0.111411,89758.0,89754.0,0.16712068]
[1731810154459,0.111411,89758.0,89753.0,0.005]
[1731810154695,0.111411,89758.0,89757.0,0.005]
[1731810154907,0.222792,89770.0,89765.0,0.005]
[1731810155152,0.0785,89779.0,89771.0,0.005]
[1731810155392,0.17212068,89797.0,89763.0,0.002]
[1731810155393,0.111375,89787.0,89777.0,0.005]
[1731810155617,0.16712068,89797.0,89779.0,0.005]
[1731810155841,0.22275,89787.0,89779.0,0.005]
[1731810156061,0.02035742,89792.0,89779.0,0.005]
[1731810156297,0.111389,89775.0,89774.0,0.005]
[1731810156545,0.02035742,89791.0,89779.0,0.111384]
[1731810156801,0.111375,89786.0,89780.0,0.111383]
[1731810157021,0.111378,89785.0,89778.0,0.111385]
[1731810157252,0.222746,89788.0,89779.0,0.001]
[1731810157467,0.222743,89790.0,89781.0,0.111382]
[1731810157693,0.222743,89790.0,89777.0,0.222773]
[1731810157916,0.012,89787.0,89779.0,0.002]
[1731810158139,0.222754,89785.0,89779.0,0.006]
[1731810158402,0.222756,89784.0,89779.0,0.006]
[1731810158619,0.11138,89783.0,89779.0,0.006]
[1731810158840,0.222751,89786.0,89779.0,0.006]
[1731810159067,0.222748,89788.0,89779.0,0.005]
[1731810159281,0.014,89791.0,89779.0,0.005]
[1731810159513,0.0017134,89784.0,89781.0,0.001]
[1731810159768,0.11138,89782.0,89781.0,0.001]
[1731810159980,0.11138,89782.0,89779.0,0.005]
[1731810159981,0.11138,89782.0,89779.0,0.006]
[1731810160198,0.11138,89782.0,89779.0,0.007]
[1731810160416,0.11138,89782.0,89779.0,0.006]
[1731810160855,0.0017134,89784.0,89779.0,0.005]
[1731810161081,0.0017134,89784.0,89781.0,0.001]
[1731810161307,0.1130914,89784.0,89781.0,0.001]
[1731810161972,0.11138,89782.0,89781.0,0.001]
[1731810162230,0.111382,89781.0,89779.0,0.007]
[1731810162937,0.0017134,89784.0,89779.0,0.005]
[1731810163161,0.11138,89783.0,89779.0,0.005]
[1731810163409,0.11138,89783.0,89781.0,0.004]
[1731810163635,0.11138,89783.0,89781.0,0.002]
[1731810163859,0.11138,89783.0,89779.0,0.007]
[1731810164620,0.0017134,89784.0,89783.0,0.116379]
[1731810164855,0.0017134,89784.0,89783.0,0.22544155]
[1731810165296,0.0017134,89784.0,89783.0,0.22766895]
[1731810166178,0.0017134,89784.0,89783.0,0.22966895]
[1731810166627,0.0017134,89784.0,89783.0,0.23166895]
[1731810166871,0.0017134,89784.0,89783.0,0.40624155]
[1731810167091,0.0017134,89784.0,89783.0,0.40824155]
[1731810167553,0.0017134,89784.0,89783.0,0.33444155]
[1731810167804,0.0017134,89784.0,89783.0,0.120379]
[1731810168459,0.0017134,89784.0,89783.0,0.009]
[1731810168707,0.0017134,89784.0,89783.0,0.004]
[1731810168932,0.0017134,89784.0,89779.0,0.005]
[1731810169178,0.1130914,89784.0,89783.0,0.002]
[1731810169391,0.1130914,89784.0,89783.0,0.001]
[1731810169869,0.11138,89783.0,89780.0,0.005]
[1731810170083,0.11138,89782.0,89780.0,0.005]
[1731810170296,0.11138,89782.0,89766.0,0.38991968]
[1731810170297,0.111383,89780.0,89779.0,0.001]
[1731810170541,0.0017134,89784.0,89779.0,0.005]
[1731810170542,0.222761,89782.0,89779.0,0.005]
[1731810170779,0.0017134,89784.0,89779.0,0.005]
[1731810170780,0.111383,89780.0,89779.0,0.005]
[1731810171507,0.0017134,89784.0,89768.0,0.005]
[1731810171754,0.0017134,89784.0,89767.0,0.16712068]
[1731810171755,0.111398,89768.0,89767.0,0.16712068]
[1731810171963,0.0777,89783.0,89756.0,0.16712068]
[1731810171964,0.222815,89761.0,89756.0,0.16712068]
[1731810172189,0.111411,89757.0,89756.0,0.16712068]
[1731810172909,0.111415,89755.0,89752.0,0.005]
[1731810173154,0.111414,89755.0,89748.0,0.111422]
[1731810173418,0.111424,89747.0,89746.0,0.005]
[1731810173735,0.1273,89767.0,89732.0,0.111442]
[1731810173736,0.111436,89738.0,89732.0,0.111442]
[1731810173944,0.16712068,89765.0,89718.0,0.005]
[1731810173945,0.111411,89757.0,89756.0,0.001]
[1731810174197,0.22047355,89757.0,89756.0,0.001]
[1731810174926,0.111411,89757.0,89756.0,0.001]
[1731810175147,0.111419,89751.0,89750.0,0.005]
[1731810175612,0.1273,89767.0,89750.0,0.005]
[1731810175836,0.10906255,89766.0,89750.0,0.005]
[1731810176085,0.10906255,89766.0,89750.0,0.11642]
[1731810176324,0.125411,89757.0,89756.0,0.001]
[1731810176559,0.10906255,89766.0,89751.0,0.005]
[1731810176560,0.22282,89759.0,89751.0,0.005]
[1731810176802,0.10906255,89766.0,89751.0,0.005]
[1731810177053,0.111416,89754.0,89751.0,0.005]
[1731810177279,0.12006255,89766.0,89751.0,0.005]
[1731810177280,0.14040673,89766.0,89751.0,0.005]
[1731810177518,0.111417,89753.0,89751.0,0.005]
[1731810177978,0.14040673,89766.0,89759.0,0.005]
[1731810177979,0.02034418,89766.0,89759.0,0.005]
[1731810178198,0.02034418,89766.0,89752.0,0.10906255]
[1731810178199,0.014,89767.0,89764.0,0.005]
[1731810178422,0.014,89767.0,89756.0,0.16712068]
[1731810178423,0.18746486,89779.0,89778.0,0.111385]
[1731810178660,0.16712068,89779.0,89778.0,0.116385]
[1731810178914,0.16712068,89779.0,89776.0,0.222774]
[1731810178915,0.0017134,89784.0,89783.0,0.111379]
[1731810179136,0.0017134,89784.0,89782.0,0.11138]
[1731810179354,0.0017134,89784.0,89783.0,0.111379]
[1731810179586,0.02211109,89784.0,89783.0,0.116379]
[1731810179821,0.0017134,89784.0,89783.0,0.005]
[1731810180047,0.111381,89782.0,89780.0,0.005]
[1731810180264,0.0017134,89784.0,89782.0,0.001]
[1731810180265,0.334138,89783.0,89782.0,0.001]
[1731810180485,0.12158731,89783.0,89782.0,0.002]
[1731810180711,0.03062495,89783.0,89782.0,0.006]
[1731810180931,0.06329166,89783.0,89782.0,0.11738]
[1731810181156,0.02041664,89783.0,89782.0,0.11738]
[1731810181390,0.03062495,89783.0,89782.0,0.11638]
[1731810181823,0.02041664,89783.0,89782.0,0.22544255]
[1731810182267,0.0017134,89784.0,89783.0,0.116379]
[1731810182521,0.02215609,89784.0,89783.0,0.22544155]
[1731810183454,0.03237691,89784.0,89783.0,0.22544155]
[1731810183678,0.03237694,89784.0,89783.0,0.22744155]
[1731810183902,0.03237694,89784.0,89783.0,0.22544155]
[1731810183903,0.06508274,89784.0,89783.0,0.22544155]
[1731810184131,0.03237694,89784.0,89783.0,0.22744155]
[1731810184352,0.02215609,89784.0,89783.0,0.22744155]
[1731810184576,0.02215609,89784.0,89783.0,0.22544155]
[1731810184831,0.02215609,89784.0,89783.0,0.23044155]
[1731810185315,0.13884992,89805.0,89804.0,0.116353]
[1731810185757,0.03354007,89807.0,89804.0,0.116353]
[1731810185758,0.0008557,89807.0,89805.0,0.111352]
[1731810185989,0.0008557,89807.0,89804.0,0.005]
[1731810185990,0.0008557,89807.0,89806.0,0.116351]
[1731810187036,0.0108557,89807.0,89806.0,0.116351]
[1731810187275,0.0008557,89807.0,89806.0,0.116351]
[1731810187516,0.0008557,89807.0,89806.0,0.117351]
[1731810187517,0.0108557,89807.0,89806.0,0.117351]
[1731810187753,0.0108557,89807.0,89806.0,0.22641355]
[1731810188261,0.0108557,89807.0,89806.0,0.2286404]
[1731810188510,0.0248557,89807.0,89806.0,0.22741355]
[1731810188736,0.0108557,89807.0,89806.0,0.22641355]
[1731810189190,0.0108557,89807.0,89806.0,0.22841355]
[1731810189420,0.0008557,89807.0,89806.0,0.22741355]
[1731810189637,0.0008557,89807.0,89806.0,0.22541355]
[1731810189853,0.0008557,89807.0,89806.0,0.22941355]
[1731810190520,0.0008557,89807.0,89806.0,0.22741355]
[1731810190962,0.0008557,89807.0,89806.0,0.22941355]
[1731810191444,0.0008557,89807.0,89806.0,0.22741355]
[1731810191712,0.0008557,89807.0,89806.0,0.22541355]
[1731810192183,0.0008557,89807.0,89806.0,0.22741355]
[1731810192655,0.0008557,89807.0,89806.0,0.22541355]
[1731810193323,0.0008557,89807.0,89806.0,0.22741355]
[1731810193542,0.0008557,89807.0,89806.0,0.22841355]
[1731810193986,0.0008557,89807.0,89806.0,0.22741355]
[1731810194227,0.0008557,89807.0,89806.0,0.22841355]
[1731810194683,0.0008557,89807.0,89806.0,0.22541355]
[1731810194925,0.0008557,89807.0,89806.0,0.22741355]
[1731810195380,0.0008557,89807.0,89806.0,0.22641355]
[1731810195605,0.0008557,89807.0,89806.0,0.008]
[1731810196274,0.0008557,89807.0,89806.0,0.117351]
[1731810196499,0.0008557,89807.0,89806.0,0.007]
[1731810196978,0.1122047,89807.0,89806.0,0.008]
[1731810197212,0.1122047,89807.0,89806.0,0.007]
[1731810197467,0.1122047,89807.0,89806.0,0.008]
[1731810197676,0.1122047,89807.0,89806.0,0.005]
[1731810197908,0.1122047,89807.0,89806.0,0.00691899]
[1731810198173,0.1122047,89807.0,89806.0,0.00791899]
[1731810198398,0.1122047,89807.0,89806.0,0.00491899]
[1731810198622,0.0008557,89807.0,89799.0,0.00491899]
[1731810198838,0.0008557,89807.0,89782.0,0.0008559]
[1731810198839,0.1122047,89807.0,89806.0,0.002]
[1731810199298,0.1122047,89807.0,89797.0,0.00491899]
[1731810199299,0.111361,89798.0,89797.0,0.00491899]
[1731810200192,0.034361,89798.0,89797.0,0.00491899]
[1731810200420,0.111361,89798.0,89797.0,0.00491899]
[1731810201320,0.0148557,89807.0,89797.0,0.00491899]
[1731810201321,0.222702,89806.0,89797.0,0.00491899]